Cogmind - Beta 13 @@@ ROGUE MODE // 2024.07.25 @ 23:32:30 Player: t0f Result: Destroyed by G-34 Mercenary with Small Laser Performance ------------- Evolutions (1) 500 Regions Visited (2) 400 Robots Destroyed (13) 65 Value Destroyed (397) 397 Prototype IDs (0) 0 Alien Tech Used (0) 0 Bonus (0) 0 TOTAL SCORE: 1362 Bonus ------- None Cogmind --------- Core Integrity 0/400 Matter 300/300 Energy 350/350 System Corruption 0% Temperature Cool (6) Movement Core (150) Ox2 Location -9/Materials Parts ------- > --- POWER (1) -------- (None) > --- PROPULSION (2) --- (None) > --- UTILITY (4) ------ High-capacity Battery > --- WEAPON (2) ------- Maul > --- INVENTORY (5) ---- Light Nuclear Core Medium Matter Pod (100) Small Laser Peak State ------------ > --- POWER ------------ Ion Engine > --- PROPULSION ------- Aluminum Leg > --- UTILITY ---------- Small Storage Unit High-capacity Battery > --- WEAPON ----------- Beam Cannon Maul > --- INVENTORY -------- Light Nuclear Core Medium Matter Pod Small Laser [Rating: 7] Favorites ----------- Power Ion Engine Engine Ion Engine Propulsion Aluminum Leg Leg Aluminum Leg Utility High-capacity Battery Storage High-capacity Battery Weapon Beam Cannon Energy Gun Small Laser Energy Cannon Beam Cannon Launcher Grenade Launcher Impact Weapon Maul Build | -11 -10 -9 ------- Run | Yrd Mat Mat Slots Evolved 2 | . . 2 Power . | . . . Propulsion . | . . . Utility 2 | . . 2 Weapon . | . . . Parts Attached 10 | . 6 4 Power 1 | . 1 . Engine 1 | . 1 . Core . | . . . Reactor . | . . . Propulsion 1 | . . 1 Treads . | . . . Leg 1 | . . 1 Wheel . | . . . Hover . | . . . Flight . | . . . Utility 3 | . 2 1 Device . | . . . Storage 3 | . 2 1 Processor . | . . . Hackware . | . . . Protection . | . . . Artifact . | . . . Weapon 5 | . 3 2 Energy Gun 2 | . 1 1 Energy Cannon 1 | . 1 . Ballistic Gun . | . . . Ballistic Cannon . | . . . Launcher 1 | . 1 . Special Weapon . | . . . Impact Weapon 1 | . . 1 Slashing Weapon . | . . . Piercing Weapon . | . . . Special Melee Weapon . | . . . Unidentified Prototypes . | . . . Parts Lost 5 | . 1 4 Power 1 | . . 1 Propulsion 1 | . . 1 Utility 1 | . . 1 Weapon 2 | . 1 1 Highest Loss Streak 2 | . 1 2 To Critical Strikes . | . . . Average Slot Usage (%) 44 | . 44 42 Engine 4 | . 5 3 Leg 1 | . . 3 Storage 23 | . 25 19 Energy Gun 2 | . 5 . Energy Cannon 5 | . 3 7 Launcher 2 | . 4 . Impact Weapon 3 | . . 7 Naked Turns 28 | . 28 . Heaviest Build 20 | . 17 20 Greatest Support 10 | 3 3 10 Greatest Overweight (x) 6 | . 5 6 Average Overweight (x) 2 | . 2 2 Largest Inventory Capacity 8 | 5 8 8 Average Capacity 7 | 5 7 7 Most Carried 4 | . 4 3 Average Carried 1 | . . 2 Final Capacity 8 | 5 8 5 Final Carried 3 | . 2 3 Class Distribution -------------------- 100% | Mutant Dominant Class ---------------- Mutant | -10/Materials Mutant | -9/Materials Resources | -11 -10 -9 ----------- Run | Yrd Mat Mat Matter Collected 433 | 80 42 311 Remotely . | . . . Salvage Created 506 | . 49 457 Parts 21 | . 1 20 Haulers Intercepted . | . . . Recyclers Shooed . | . . . Parts Field Recycled . | . . . Retrieved Matter . | . . . Parts Self-Destructed . | . . . Prevented . | . . . Kills | -11 -10 -9 ------- Run | Yrd Mat Mat Combat Hostiles Destroyed 12 | . 2 10 Guns 1 | . 1 . Cannons 8 | . . 8 AOE 1 | . 1 . Classes Destroyed 4 | . 1 3 Recycler 1 | . . 1 Swarmer 3 | . . 3 Grunt 7 | . 2 5 Sentry 2 | . . 2 Best Kill Streak 4 | . 1 4 Combat Bots Only 3 | . 1 3 Max Kills in Single Turn 1 | . 1 1 Gunslinging . | . . . Exploded 1 | . 1 . Melee . | . . . Uniques/NPCs Destroyed . | . . . Combat | -11 -10 -9 -------- Run | Yrd Mat Mat Hostile Shots Fired 107 | . 9 98 Missed 33 | . 4 29 Damage Taken 1022 | . 216 806 Core 452 | . 48 404 Absorbed by Shields . | . . . Core Remaining (%) 90 | 100 80 . Volleys Fired 41 | . 7 34 Largest 2 | . 2 1 Hottest 70 | . 70 60 Shots Fired 42 | . 8 34 Gun 2 | . 2 . Cannon 34 | . . 34 Launcher 6 | . 6 . Special . | . . . Kinetic . | . . . Thermal 36 | . 2 34 Explosive 6 | . 6 . Electromagnetic . | . . . Robot Hit Streak 9 | . 3 9 Robot Miss Streak 2 | . 1 2 Penetration Max . | . . . Secondary Targets . | . . . Shots Hit Robots 34 | . 6 28 Core Hits 15 | . 4 11 Critical Kills 1 | . . 1 Critical Parts Destroyed 1 | . . 1 Critical Strikes 2 | . . 2 Meltdown 1 | . . 1 Smash 1 | . . 1 Melee Attacks 11 | . . 11 Impact 11 | . . 11 Slashing . | . . . Piercing . | . . . Sneak Attacks . | . . . Combat Hostiles . | . . . Follow-up Attacks . | . . . Damage Inflicted 845 | . 208 637 Guns 22 | . 22 . Cannons 387 | . . 387 Explosions 179 | . 179 . Melee 250 | . . 250 Ramming 7 | . 7 . Kinetic . | . . . Thermal 409 | . 22 387 Explosive 179 | . 179 . Electromagnetic . | . . . Impact 250 | . . 250 Slashing . | . . . Piercing . | . . . Highest Corruption . | . . . Average Corruption . | . . . Corruption Purged . | . . . Corruption Blocked . | . . . Overload Shots . | . . . Overflow Damage 101 | . 18 83 Projectiles . | . . . Explosions 18 | . 18 . Melee 83 | . . 83 Knockbacks 2 | . . 2 Impact 2 | . . 2 Kinetic . | . . . Secondary . | . . . Self-Inflicted Damage 47 | . 47 . Shots 3 | . 3 . Rammed 1 | . 1 . Targets Rammed 1 | . 1 . Kicked . | . . . Crushed . | . . . Highest Temperature 178 | . 4 178 Average Temperature 58 | . 4 59 Received Heat Transfer 408 | . 30 378 Siege Activations . | . . . Robots Corrupted . | . . . Combat Hostiles . | . . . Parts Fried 2 | . . 2 Impact Corruptions 5 | . . 5 Robots Melted 1 | . . 1 Combat Hostiles . | . . . Parts Melted 2 | . . 2 Heat Transferred 864 | . 50 814 Parts Sabotaged . | . . . Parts Stolen . | . . . Parts Stripped . | . . . Power Chain Reactions . | . . . Alert | -11 -10 -9 ------- Run | Yrd Mat Mat Peak Influence 281 | . 94 281 Initial . | . . . Average 101 | . 53 165 Maximum Alert Level 1 | . . 1 Low Security (%) 81 | 100 100 58 Level 1 18 | . . 41 Level 2 . | . . . Level 3 . | . . . Level 4 . | . . . Level 5 . | . . . High Security . | . . . Max Security . | . . . Squads Dispatched 2 | . 2 . Investigation 1 | . 1 . Extermination . | . . . Reinforcement 1 | . 1 . Assault . | . . . Garrison . | . . . Intercept . | . . . Searches Triggered . | . . . Construction Impeded . | . . . Haulers Reinforced . | . . . Active Scanning Responses . | . . . Cargo Convoy Interrupts . | . . . Stealth | -11 -10 -9 --------- Run | Yrd Mat Mat Distress Signals 2 | . . 2 Communications Jammed . | . . . Distress Signals . | . . . Times Spotted 22 | . 5 17 Peak Tracking Total 5 | . 2 5 Tactical Retreats . | . . . Traps | -11 -10 -9 ------- Run | Yrd Mat Mat Traps Triggered 2 | . 2 . Indirectly . | . . . Trap Hack Attempts . | . . . Triggered . | . . . Disarmed . | . . . Reprogrammed . | . . . Reused . | . . . Traps Extracted . | . . . Installed . | . . . Triggered . | . . . Machines | -11 -10 -9 ---------- Run | Yrd Mat Mat Machines Disabled 2 | . 1 1 Max in Single Turn 1 | . 1 1 Machines Repaired . | . . . Machines Dismantled . | . . . Machines Sabotaged . | . . . Overloaded Fab Kills . | . . . Hacking | -11 -10 -9 --------- Run | Yrd Mat Mat Machines Accessed 1 | . . 1 Terminals 1 | . . 1 Fabricators . | . . . Repair Stations . | . . . Recycling Units . | . . . Scanalyzers . | . . . Garrison Access . | . . . Total Hacks 2 | . . 2 Successful 2 | . . 2 Failed . | . . . Catastrophic . | . . . Database Lockouts . | . . . Manual . | . . . Terminals 2 | . . 2 Fabricators . | . . . Repair Stations . | . . . Recycling Units . | . . . Scanalyzers . | . . . Garrison Access . | . . . Terminal Hacks 2 | . . 2 Record 1 | . . 1 Dispatch Records 1 | . . 1 Fabricator Hacks . | . . . Repair Station Hacks . | . . . Recycling Unit Hacks . | . . . Scanalyzer . | . . . Garrison Access Hacks . | . . . Unauthorized Hacks . | . . . Terminals . | . . . Fabricators . | . . . Repair Stations . | . . . Recycling Units . | . . . Scanalyzers . | . . . Garrison Access . | . . . Data Cores Recovered . | . . . Used . | . . . Hacking Detections 1 | . . 1 Full Trace Events . | . . . Feedback Events . | . . . Feedback Blocked . | . . . Robot Schematics Acquired . | . . . Robots Built . | . . . Authchips . | . . . Time . | . . . Total Robot Build Rating . | . . . Part Schematics Acquired . | . . . Parts Built . | . . . Authchips . | . . . Time . | . . . Total Part Build Rating . | . . . Parts Repaired . | . . . Time . | . . . Parts Recycled . | . . . Recycled Matter . | . . . Retrieved Matter . | . . . Retrieved Components . | . . . Parts Scanalyzed . | . . . Part Schematics Acquired . | . . . Parts Damaged . | . . . Bothacking | -11 -10 -9 ------------ Run | Yrd Mat Mat Used RIF Installer . | . . . Robots Hacked . | . . . Non-combat . | . . . Combat . | . . . Robot Hacks Applied . | . . . Relay Couplers Released . | . . . Fabnet Peak Effective % . | . . . Robots Rewired . | . . . Allies Hacked . | . . . Hacks Repelled . | . . . Allies | -11 -10 -9 -------- Run | Yrd Mat Mat Total Allies . | . . . Largest Group . | . . . Highest-Rated Group . | . . . Highest-Rated Ally . | . . . Total Orders . | . . . Ally Attacks . | . . . Total Damage . | . . . Kills . | . . . Allies Corrupted . | . . . Allies Melted . | . . . Intel | -11 -10 -9 ------- Run | Yrd Mat Mat Robot Analysis Total . | . . . Derelict Logs Recovered . | . . . Drone Launches . | . . . Drone Recoveries . | . . . Exploration | -11 -10 -9 ------------- Run | Yrd Mat Mat Turns Passed 745 | 13 408 324 Spaces Moved 338 | 25 211 102 Core 298 | 25 211 62 Treads . | . . . Legs 40 | . . 40 Wheels . | . . . Hover . | . . . Flight . | . . . Fastest Speed 50 | 50 50 150 Average Speed 176 | 50 177 203 Slowest Speed 350 | 50 300 350 Overloaded Moves . | . . . Propulsion Burnouts . | . . . Robots Hopped . | . . . Cave-ins Triggered . | . . . Exploration Rate (%) 16 | 3 38 7 Regions Visited 2 Branch Regions . Pre-discovered Areas . | . . . Known Exits Taken . | . . . Unknown Exits Taken 2 | 1 1 . Scrap Searched . | . . . Spaces Dug . | . . . Terrain Destroyed 35 | . 35 . Melee . | . . . Projectile . | . . . AOE 35 | . 35 . Terrain Rammed . | . . . Walls Destroyed . | . . . Machines Disabled . | . . . Actions | -11 -10 -9 --------- Run | Yrd Mat Mat Total 423 | 24 236 163 Wait 12 | . 3 9 Move 336 | 24 210 102 Hop . | . . . Pick Up 6 | . 5 1 Fast Attach 7 | . 5 2 Attach 3 | . 1 2 Detach 3 | . 1 2 Swap . | . . . Drop 3 | . 3 . Fire 41 | . 7 34 Melee 11 | . . 11 Ram 1 | . 1 . Kick . | . . . Crush . | . . . Escape Stasis . | . . . Rewire . | . . . Trap . | . . . Miscellaneous . | . . . Route ------- -11/Scrapyard -10/Materials -9/Materials History --------- Turn | Location | Event 6 | -11/Scrapyard | Discovered new exit (range 15) 14 | -11/Scrapyard | Entered Materials 300 | -10/Materials | Build established: Mutant 386 | -10/Materials | Discovered new exit (range 11) 422 | -10/Materials | Entered another Materials area 422 | -9/Materials | Evolved 2 slots: Utility x2 657 | -9/Materials | Core integrity fell below 50% 734 | -9/Materials | Core integrity fell below 20% 746 | -9/Materials | Destroyed by G-34 Mercenary with Small Laser Last Messages --------------- 00664_ Destroyed Lgt. Ion Engine. 00664_ S-10 Pest system corrupted by crushing effect. 00665_ S-10 Pest IFF system glitched. 00666_ S-10 Pest misfires. 00667_ Destroyed Flight Unit. 00667_ S-10 Pest system corrupted by crushing effect. 00668_ S-10 Pest IFF system glitched. 00668_ Sml. Storage Unit destroyed. 00673_ Destroyed Lgt. Assault Rifle. 00673_ S-10 Pest system corrupted by crushing effect. 00674_ S-10 Pest system terminally corrupted. 00676_ Acquired 2 matter. 00679_ R-06 Scavenger collects Lgt. Ion Engine. 00684_ R-06 Scavenger collects Flight Unit. 00694_ Acquired 3 matter. 00705_ K-01 Serf collects debris. 00714_ Critical hit (Burn: +37). 00715_ K-01 Serf collects debris. 00738_ G-47 Trooper knocked back. 00741_ K-01 Serf collects debris. Map ----- +----------------------------------------------------+ | ?????????????????????????????????????????????????? | | ?????????????????????????????????????????????????? | | ?????????????????????????????????????????????????? | | ?????????????????????????????????????????????????? | | ?????????????????????????????????????????????????? | | ?????????????????????????????????????????????????? | | ?????????????????????????????????????????????????? | | ?????????????????????????????????????????????????? | | ?????????????????????????????????????????????????? | | ?????????????????????????????????????????????????? | | ?????????????????????????????????????????????????? | | ?????????????????????????????????????????????????? | | ?????????????????????????????????????????????????? | | ?????????????????????????????????????????????????? | | ?????????????????????????????????????????????????? | | ?????????????????????????????????????????????????? | | ?????????????????????????????????????????????????? | | ?????????????????????????????????????????????????? | | ?????????????????????????????????????????????????? | | ??????????????????????????????????#??????????????? | | ?????????????????##############??? ???? ???????? | | ?????????????????# """ #???" "???""???????? | | ?????????????????# "T" """ #???? """ ""???????? | | ?????????????????# #???? """ "????????? | | ?????????????????#! """ #????? ?????????? | | ?????????????????# k k @ #????? % ??????????? | | ?????????????????########g#####???###+###????????? | | ???????????????######## Yg ####### ########?? | | ???????????????# #?? | | ?????????####### #?? | | ?? % r #?? | | ???????######### #### ####### ####?????? | | ???????????????# #??#######?????##=% ##????????? | | ???????????????# #???????????????# #?????????? | | ???????????????+ #???????????????# [ #?????????? | | ???????????????# #???????????????+ #?????????? | | ???????????????# #???????????????# #?????????? | | ???????????????# #???????????????# #?????????? | | ???????????????# #???????????????# #?????????? | | ???????????????# #???????????????# #?????????? | | ???????????????# #???????????????# #?????????? | | ???????????????# +???????????????# #?????????? | | ???????????????# #???????????????# #?????????? | | ???????????????# ????????????????# #?????????? | | ??????????????? ????????????????# #?????????? | | ????????????????#+#????????????????# #?????????? | | ???????????????????????????????????#####?????????? | | ?????????????????????????????????????????????????? | | ?????????????????????????????????????????????????? | | ?????????????????????????????????????????????????? | +----------------------------------------------------+ Best States ------------- Heat Dissipation 28 Energy Generation 10 Energy Capacity 500 Matter Stores 300 Matter Capacity 400 Sight Range 16 Terrain Scan Density 10 Evasion (%) 50 Item Schematics ----------------- None Robot Schematics ------------------ None Fabricated ------------ Nothing Alien Tech Used ----------------- None Achievements -------------- It's Just You Challenges ------------ None Game ------ Seed MappingHardlightWell Manual? 0 Play Time 00:11:22 Cumulative 1.3 hours Start 2024.07.25 @ 23:22:07 End 2024.07.25 @ 23:32:30 Sessions 1 Manual Loads 0 Difficulty Rogue Special Mode None Game No. 4 Rogue 4 Adventurer 0 Explorer 0 Win Type - Total 0 Types 0/0/0/0/0/0/0/0/0 Lore% 1 Gallery% 3 Achievement% 4 Wizard Run 0 Options --------- Layout 0 ASCII 0 Keyboard 0 Movement Mouse Keybinds 0 Fullscreen 2 Font 24/Smallcaps Map View 76x50 Zoom Use 0% Tactical HUD 1 Map Filters NONE Filters NONE Steam 1 RUN: 15fae57c-9787-46f5-8791-3c2fd0b8f95a